[Event "*** Titled Tuesday Blitz"]
[Site "Chess.com"]
[Date "2020.10.27"]
[Round "2"]
[White "Blitzstream"]
[Black "kingofthenil"]
[Result "1-0"]
[WhiteElo "2725"]
[BlackElo "2454"]
[TimeControl "180+1"]
[EndTime "10:19:22 PDT"]
[Termination "Blitzstream won on time"]

1. d4 {[%clk 0:03:00.9]} 1... Nf6 {[%clk 0:02:59.2]} 2. Bg5 {[%clk 0:03:00.3]}
2... d5 {[%clk 0:02:58.7]} 3. e3 {[%clk 0:03:00]} 3... c5 {[%clk 0:02:58.3]} 4.
c3 {[%clk 0:02:59.8]} 4... Nc6 {[%clk 0:02:54.9]} 5. Nf3 {[%clk 0:02:58.4]} 5...
cxd4 {[%clk 0:02:33.3]} 6. exd4 {[%clk 0:02:57.5]} 6... h6 {[%clk 0:02:33.1]} 7.
Bxf6 {[%clk 0:02:53.3]} 7... gxf6 {[%clk 0:02:34]} 8. g3 {[%clk 0:02:48.9]} 8...
e6 {[%clk 0:02:23.1]} 9. Bg2 {[%clk 0:02:48.7]} 9... f5 {[%clk 0:02:21.2]} 10.
O-O {[%clk 0:02:48.5]} 10... Bd6 {[%clk 0:02:21.5]} 11. Re1 {[%clk 0:02:48.6]}
11... O-O {[%clk 0:02:21.4]} 12. Ne5 {[%clk 0:02:48.4]} 12... Qf6 {[%clk
0:02:19.8]} 13. f4 {[%clk 0:02:47.3]} 13... Qg7 {[%clk 0:02:06.6]} 14. Nd2
{[%clk 0:02:46.5]} 14... Nxe5 {[%clk 0:01:41.9]} 15. fxe5 {[%clk 0:02:40.5]}
15... Be7 {[%clk 0:01:39.1]} 16. Nb3 {[%clk 0:02:32.8]} 16... Bd7 {[%clk
0:01:35.1]} 17. Nc1 {[%clk 0:02:32.4]} 17... Kh8 {[%clk 0:01:08.4]} 18. Nd3
{[%clk 0:02:30]} 18... Bg5 {[%clk 0:01:08.8]} 19. Qf3 {[%clk 0:02:25.2]} 19...
Ba4 {[%clk 0:01:01.8]} 20. Nf4 {[%clk 0:01:53.1]} 20... Bc2 {[%clk 0:01:00.2]}
21. Qf2 {[%clk 0:01:51.2]} 21... Be4 {[%clk 0:00:56.8]} 22. Bxe4 {[%clk
0:01:41.8]} 22... fxe4 {[%clk 0:00:56.1]} 23. Rf1 {[%clk 0:01:41]} 23... Rae8
{[%clk 0:00:47.2]} 24. Nh5 {[%clk 0:01:24.6]} 24... Qg6 {[%clk 0:00:41.5]} 25.
Nf6 {[%clk 0:01:25.5]} 25... Bxf6 {[%clk 0:00:29.4]} 26. Qxf6+ {[%clk
0:01:24.9]} 26... Kh7 {[%clk 0:00:12.2]} 27. Rf2 {[%clk 0:01:22.2]} 27... e3
{[%clk 0:00:11.5]} 28. Qxg6+ {[%clk 0:01:14.6]} 28... fxg6 {[%clk 0:00:11.6]}
29. Re2 {[%clk 0:01:15]} 29... Rf3 {[%clk 0:00:11.4]} 30. Rf1 {[%clk 0:01:13.7]}
30... Ref8 {[%clk 0:00:09.6]} 31. Rxf3 {[%clk 0:01:13.8]} 31... Rxf3 {[%clk
0:00:10.5]} 32. Kg2 {[%clk 0:01:14.4]} 32... Rf7 {[%clk 0:00:08.8]} 33. Rxe3
{[%clk 0:01:14.8]} 33... Kg7 {[%clk 0:00:09]} 34. Rf3 {[%clk 0:01:15.2]} 34...
Rc7 {[%clk 0:00:08.5]} 35. Kf2 {[%clk 0:01:13.5]} 35... b5 {[%clk 0:00:08.4]}
36. Ke2 {[%clk 0:01:13.8]} 36... b4 {[%clk 0:00:05.5]} 37. Kd2 {[%clk 0:01:14]}
37... bxc3+ {[%clk 0:00:04.5]} 38. bxc3 {[%clk 0:01:14.2]} 38... Rc6 {[%clk
0:00:03.3]} 39. Kc2 {[%clk 0:01:13.8]} 39... Ra6 {[%clk 0:00:04.2]} 40. Kb2
{[%clk 0:01:11.8]} 40... Rb6+ {[%clk 0:00:04.6]} 41. Kc1 {[%clk 0:01:11.8]}
41... Ra6 {[%clk 0:00:05.5]} 42. Rf2 {[%clk 0:01:12]} 42... Ra3 {[%clk
0:00:05.3]} 43. Kb2 {[%clk 0:01:11.4]} 43... Ra6 {[%clk 0:00:05.4]} 44. Kb3
{[%clk 0:01:11.4]} 44... Rb6+ {[%clk 0:00:05.6]} 45. Kc2 {[%clk 0:01:11.8]}
45... Ra6 {[%clk 0:00:05.9]} 46. Kd3 {[%clk 0:01:12.3]} 46... Ra3 {[%clk
0:00:05.4]} 47. Rb2 {[%clk 0:01:09.2]} 47... g5 {[%clk 0:00:05.6]} 48. g4 {[%clk
0:01:08.8]} 48... Kg6 {[%clk 0:00:04.6]} 49. h3 {[%clk 0:01:09.3]} 49... h5
{[%clk 0:00:05.1]} 50. Rf2 {[%clk 0:01:09.3]} 50... hxg4 {[%clk 0:00:03]} 51.
hxg4 {[%clk 0:01:10.2]} 51... Kg7 {[%clk 0:00:03.8]} 52. Rf6 {[%clk 0:01:03.2]}
52... Ra6 {[%clk 0:00:04.3]} 53. Rf2 {[%clk 0:01:00.4]} 53... Ra3 {[%clk
0:00:04.4]} 54. Rb2 {[%clk 0:00:59.3]} 54... Kg6 {[%clk 0:00:04.5]} 55. Kc2
{[%clk 0:00:54.2]} 55... Ra6 {[%clk 0:00:04.1]} 56. Kb1 {[%clk 0:00:50.9]} 56...
Rc6 {[%clk 0:00:03.9]} 57. Rc2 {[%clk 0:00:50.5]} 57... Rb6+ {[%clk 0:00:03.8]}
58. Ka1 {[%clk 0:00:50.6]} 58... Rc6 {[%clk 0:00:02.4]} 59. a3 {[%clk
0:00:48.9]} 59... Rb6 {[%clk 0:00:02.3]} 60. Ka2 {[%clk 0:00:49.2]} 60... Rc6
{[%clk 0:00:01.7]} 61. a4 {[%clk 0:00:49]} 61... Rc4 {[%clk 0:00:01.1]} 62. Kb3
{[%clk 0:00:49.3]} 62... Rc7 {[%clk 0:00:01.9]} 63. Rf2 {[%clk 0:00:49.1]} 63...
Rb7+ {[%clk 0:00:01.9]} 64. Ka3 {[%clk 0:00:49.2]} 64... Rc7 {[%clk 0:00:02.8]}
65. Rf6+ {[%clk 0:00:48.5]} 65... Kg7 {[%clk 0:00:02.8]} 66. Kb4 {[%clk
0:00:47.4]} 66... Rc6 {[%clk 0:00:02.2]} 67. a5 {[%clk 0:00:46.4]} 67... a6
{[%clk 0:00:02.6]} 68. Rf2 {[%clk 0:00:45.7]} 68... Rc7 {[%clk 0:00:01.9]} 69.
Rb2 {[%clk 0:00:43.4]} 69... Rb7+ {[%clk 0:00:01.6]} 70. Ka3 {[%clk 0:00:43.7]}
70... Rc7 {[%clk 0:00:02.5]} 71. Kb3 {[%clk 0:00:41.5]} 71... Rf7 {[%clk
0:00:02.7]} 72. Rg2 {[%clk 0:00:34.7]} 72... Rb7+ {[%clk 0:00:01.4]} 73. Ka3
{[%clk 0:00:33]} 73... Rc7 {[%clk 0:00:01.7]} 74. Kb4 {[%clk 0:00:29.2]} 74...
Rb7+ {[%clk 0:00:01.9]} 75. Kc5 {[%clk 0:00:29.6]} 75... Rc7+ {[%clk 0:00:01.5]}
76. Kd6 {[%clk 0:00:29.8]} 76... Rxc3 {[%clk 0:00:02.4]} 77. Kxe6 {[%clk
0:00:30.3]} 77... Ra3 {[%clk 0:00:01.3]} 78. Kxd5 {[%clk 0:00:30.3]} 78... Rxa5+
{[%clk 0:00:02.2]} 79. Ke6 {[%clk 0:00:30.8]} 1-0

[Event "*** Titled Tuesday Blitz"]
[Site "Chess.com"]
[Date "2020.10.27"]
[Round "2"]
[White "MF1966Idrisov"]
[Black "Meri-Arabidze"]
[Result "0-1"]
[WhiteElo "2340"]
[BlackElo "2681"]
[TimeControl "180+1"]
[EndTime "10:19:29 PDT"]
[Termination "Meri-Arabidze won on time"]

1. Nf3 {[%clk 0:03:00.9]} 1... d5 {[%clk 0:02:59.9]} 2. b3 {[%clk 0:03:00.9]}
2... c5 {[%clk 0:02:59.2]} 3. Bb2 {[%clk 0:03:01]} 3... Nc6 {[%clk 0:02:59.4]}
4. e3 {[%clk 0:03:01.1]} 4... a6 {[%clk 0:02:59.4]} 5. d4 {[%clk 0:03:01]} 5...
Nf6 {[%clk 0:02:57.3]} 6. Bd3 {[%clk 0:03:00.3]} 6... Bg4 {[%clk 0:02:55.1]} 7.
O-O {[%clk 0:02:58.5]} 7... e6 {[%clk 0:02:55.3]} 8. Nbd2 {[%clk 0:02:56.9]}
8... cxd4 {[%clk 0:02:54.5]} 9. exd4 {[%clk 0:02:56.4]} 9... Bd6 {[%clk
0:02:54.6]} 10. a3 {[%clk 0:02:55.2]} 10... O-O {[%clk 0:02:53.9]} 11. Qe1
{[%clk 0:02:53.4]} 11... Bxf3 {[%clk 0:02:09.9]} 12. Nxf3 {[%clk 0:02:52.3]}
12... Qc7 {[%clk 0:02:09.6]} 13. Ne5 {[%clk 0:02:49.4]} 13... Bxe5 {[%clk
0:02:05.6]} 14. dxe5 {[%clk 0:02:47.6]} 14... Ng4 {[%clk 0:01:56.2]} 15. f4
{[%clk 0:02:29.8]} 15... Qe7 {[%clk 0:01:44.4]} 16. Qg3 {[%clk 0:02:20.9]} 16...
Nh6 {[%clk 0:01:39]} 17. Qh3 {[%clk 0:02:17.3]} 17... Qc5+ {[%clk 0:01:29]} 18.
Kh1 {[%clk 0:02:15.3]} 18... Rac8 {[%clk 0:01:28.8]} 19. g4 {[%clk 0:02:05.1]}
19... d4 {[%clk 0:01:25.3]} 20. g5 {[%clk 0:01:38.5]} 20... Nf5 {[%clk
0:01:21.2]} 21. Bxf5 {[%clk 0:01:38.4]} 21... exf5 {[%clk 0:01:21]} 22. Qxf5
{[%clk 0:01:38.2]} 22... Ne7 {[%clk 0:01:20]} 23. Qd3 {[%clk 0:01:34.4]} 23...
Qxc2 {[%clk 0:01:12.9]} 24. Qxc2 {[%clk 0:01:33]} 24... Rxc2 {[%clk 0:01:13.8]}
25. Bxd4 {[%clk 0:01:33.1]} 25... Nf5 {[%clk 0:01:14.5]} 26. Bg1 {[%clk
0:01:17.7]} 26... Rfc8 {[%clk 0:01:14.5]} 27. Rfd1 {[%clk 0:01:14.9]} 27... g6
{[%clk 0:01:14.5]} 28. b4 {[%clk 0:01:14]} 28... h5 {[%clk 0:01:13.9]} 29. gxh6
{[%clk 0:01:10.3]} 29... Nxh6 {[%clk 0:01:12.9]} 30. a4 {[%clk 0:01:08.4]} 30...
R8c4 {[%clk 0:01:07.6]} 31. b5 {[%clk 0:01:06]} 31... Rxf4 {[%clk 0:01:06.2]}
32. bxa6 {[%clk 0:01:03.1]} 32... bxa6 {[%clk 0:01:07.1]} 33. Rd6 {[%clk
0:01:00.4]} 33... Nf5 {[%clk 0:00:51.7]} 34. Rxa6 {[%clk 0:00:58.2]} 34... Rh4
{[%clk 0:00:51.8]} 35. Ra3 {[%clk 0:00:48.2]} 35... Rg4 {[%clk 0:00:49.8]} 36.
Ra1 {[%clk 0:00:36.9]} 36... Rh4 {[%clk 0:00:49.6]} 37. Ra3 {[%clk 0:00:36.5]}
37... Rc1 {[%clk 0:00:47.9]} 38. h3 {[%clk 0:00:25.6]} 38... Re4 {[%clk
0:00:42]} 39. Rf6 {[%clk 0:00:16.5]} 39... Ree1 {[%clk 0:00:39.6]} 40. a5 {[%clk
0:00:13]} 40... Rxg1+ {[%clk 0:00:39.4]} 41. Kh2 {[%clk 0:00:13.2]} 41... Rh1+
{[%clk 0:00:39.9]} 42. Kg2 {[%clk 0:00:12.9]} 42... Rcg1+ {[%clk 0:00:40.3]} 43.
Kf2 {[%clk 0:00:12.7]} 43... Rf1+ {[%clk 0:00:40.6]} 44. Kg2 {[%clk 0:00:12.6]}
44... Nh4+ {[%clk 0:00:38.9]} 45. Kg3 {[%clk 0:00:12.9]} 45... Nf5+ {[%clk
0:00:33]} 46. Kg2 {[%clk 0:00:12.7]} 46... Rhg1+ {[%clk 0:00:33]} 47. Kh2 {[%clk
0:00:12.8]} 47... Ra1 {[%clk 0:00:28.2]} 48. Rxa1 {[%clk 0:00:10.6]} 48... Rxa1
{[%clk 0:00:29.1]} 49. a6 {[%clk 0:00:11]} 49... Kg7 {[%clk 0:00:28.5]} 50. Rb6
{[%clk 0:00:10.1]} 50... Nd4 {[%clk 0:00:27.7]} 51. Kg3 {[%clk 0:00:08.7]} 51...
Ra3+ {[%clk 0:00:27.2]} 52. Kf2 {[%clk 0:00:07.6]} 52... Ne6 {[%clk 0:00:26.7]}
53. h4 {[%clk 0:00:04.7]} 53... Nd4 {[%clk 0:00:25.2]} 54. Kg2 {[%clk
0:00:03.6]} 54... Nf5 {[%clk 0:00:24.3]} 55. h5 {[%clk 0:00:02.8]} 55... gxh5
{[%clk 0:00:23.4]} 56. e6 {[%clk 0:00:02.3]} 56... fxe6 {[%clk 0:00:22.4]} 57.
Rxe6 {[%clk 0:00:01.3]} 57... h4 {[%clk 0:00:22.9]} 58. Kh2 {[%clk 0:00:01.9]}
58... Kf7 {[%clk 0:00:21.9]} 59. Rb6 {[%clk 0:00:02.8]} 59... Kg7 {[%clk
0:00:22.1]} 60. Rb7+ {[%clk 0:00:03]} 60... Kg6 {[%clk 0:00:22.4]} 61. a7 {[%clk
0:00:03.4]} 61... Kg5 {[%clk 0:00:21.4]} 62. Rc7 {[%clk 0:00:02.9]} 62... Ra2+
{[%clk 0:00:18]} 63. Kh3 {[%clk 0:00:02.4]} 63... Ra3+ {[%clk 0:00:18.5]} 64.
Kh2 {[%clk 0:00:02.5]} 64... Nh6 {[%clk 0:00:18.8]} 65. Rc5+ {[%clk 0:00:01.8]}
65... Nf5 {[%clk 0:00:18.9]} 66. Rc4 {[%clk 0:00:02.7]} 66... Ne3 {[%clk
0:00:17.4]} 67. Rc5+ {[%clk 0:00:02.5]} 67... Kg4 {[%clk 0:00:17.8]} 68. Rc7
{[%clk 0:00:02.5]} 68... Ra2+ {[%clk 0:00:18.1]} 69. Kh1 {[%clk 0:00:02.7]}
69... h3 {[%clk 0:00:18.1]} 70. Rg7+ {[%clk 0:00:02]} 70... Kh4 {[%clk
0:00:18.3]} 71. Rh7+ {[%clk 0:00:01.8]} 71... Kg3 {[%clk 0:00:18.4]} 0-1

[Event "*** Titled Tuesday Blitz"]
[Site "Chess.com"]
[Date "2020.10.27"]
[Round "2"]
[White "TengisChess"]
[Black "RaunakSadhwani2005"]
[Result "0-1"]
[WhiteElo "2607"]
[BlackElo "2955"]
[TimeControl "180+1"]
[EndTime "10:19:30 PDT"]
[Termination "RaunakSadhwani2005 won by checkmate"]

1. e4 {[%clk 0:03:00.9]} 1... c6 {[%clk 0:02:58]} 2. d4 {[%clk 0:02:59.1]} 2...
d5 {[%clk 0:02:58.2]} 3. exd5 {[%clk 0:03:00]} 3... cxd5 {[%clk 0:02:56.6]} 4.
c4 {[%clk 0:02:58.3]} 4... Nf6 {[%clk 0:02:55]} 5. Nc3 {[%clk 0:02:57.4]} 5...
Nc6 {[%clk 0:02:55.4]} 6. Nf3 {[%clk 0:02:56.2]} 6... e6 {[%clk 0:02:52.7]} 7.
Bg5 {[%clk 0:02:51.5]} 7... Be7 {[%clk 0:02:49.9]} 8. cxd5 {[%clk 0:02:49.5]}
8... Nxd5 {[%clk 0:02:47.7]} 9. Bxe7 {[%clk 0:02:46.6]} 9... Ncxe7 {[%clk
0:02:41.1]} 10. Bd3 {[%clk 0:02:42.1]} 10... O-O {[%clk 0:02:36.6]} 11. O-O
{[%clk 0:02:42.1]} 11... b6 {[%clk 0:02:26.8]} 12. Ne5 {[%clk 0:02:39.4]} 12...
Bb7 {[%clk 0:02:21.2]} 13. Qg4 {[%clk 0:02:31]} 13... Rc8 {[%clk 0:02:15.4]} 14.
Rac1 {[%clk 0:02:20]} 14... Ng6 {[%clk 0:02:12.7]} 15. Bxg6 {[%clk 0:02:15.5]}
15... hxg6 {[%clk 0:02:10.3]} 16. Nxd5 {[%clk 0:02:12.1]} 16... Qxd5 {[%clk
0:02:11.2]} 17. b3 {[%clk 0:02:12.5]} 17... Rfd8 {[%clk 0:01:55.8]} 18. h3
{[%clk 0:02:05.5]} 18... a6 {[%clk 0:01:40.7]} 19. Rfd1 {[%clk 0:02:01.7]} 19...
b5 {[%clk 0:01:35.7]} 20. Kh2 {[%clk 0:01:53.2]} 20... Qe4 {[%clk 0:01:29.8]}
21. Qxe4 {[%clk 0:01:50]} 21... Bxe4 {[%clk 0:01:30.7]} 22. f3 {[%clk
0:01:50.6]} 22... Bd5 {[%clk 0:01:28.6]} 23. Kg3 {[%clk 0:01:46.7]} 23... g5
{[%clk 0:01:22.7]} 24. Kf2 {[%clk 0:01:42.5]} 24... f6 {[%clk 0:01:23]} 25. Nd3
{[%clk 0:01:39.2]} 25... Kf7 {[%clk 0:01:19.8]} 26. Rc5 {[%clk 0:01:36.5]} 26...
Rxc5 {[%clk 0:01:15.4]} 27. Nxc5 {[%clk 0:01:34.4]} 27... a5 {[%clk 0:01:13.6]}
28. Rc1 {[%clk 0:01:28.6]} 28... Ra8 {[%clk 0:01:06.6]} 29. Ke3 {[%clk
0:01:24.4]} 29... Ke7 {[%clk 0:01:03.3]} 30. Kd3 {[%clk 0:01:21.7]} 30... Rc8
{[%clk 0:00:58]} 31. Ke3 {[%clk 0:01:18.5]} 31... Rc7 {[%clk 0:00:51.8]} 32. Kd3
{[%clk 0:01:15.9]} 32... Kd6 {[%clk 0:00:45.1]} 33. Ke3 {[%clk 0:01:12.8]} 33...
f5 {[%clk 0:00:38.7]} 34. Rc3 {[%clk 0:01:06.4]} 34... b4 {[%clk 0:00:30.6]} 35.
Rc2 {[%clk 0:01:03.4]} 35... Ra7 {[%clk 0:00:26.8]} 36. Na4 {[%clk 0:00:59.3]}
36... Rc7 {[%clk 0:00:22.2]} 37. Rxc7 {[%clk 0:00:55.1]} 37... Kxc7 {[%clk
0:00:23.1]} 38. g3 {[%clk 0:00:49]} 38... Kc6 {[%clk 0:00:19.8]} 39. f4 {[%clk
0:00:42.8]} 39... gxf4+ {[%clk 0:00:20.7]} 40. Kxf4 {[%clk 0:00:41.7]} 40... Kd6
{[%clk 0:00:18.5]} 41. Nb2 {[%clk 0:00:37.8]} 41... Be4 {[%clk 0:00:12.5]} 42.
Ke3 {[%clk 0:00:34.4]} 42... Bb1 {[%clk 0:00:06.6]} 43. Nc4+ {[%clk 0:00:30.2]}
43... Kd5 {[%clk 0:00:07.2]} 44. Nxa5 {[%clk 0:00:31.1]} 44... Bxa2 {[%clk
0:00:07.4]} 45. h4 {[%clk 0:00:27.9]} 45... g6 {[%clk 0:00:05.7]} 46. Kd3 {[%clk
0:00:25.4]} 46... Bb1+ {[%clk 0:00:06.1]} 47. Ke3 {[%clk 0:00:24.8]} 47... Bc2
{[%clk 0:00:06.5]} 48. Kd2 {[%clk 0:00:20.3]} 48... Bb1 {[%clk 0:00:07]} 49. Ke3
{[%clk 0:00:20.2]} 49... Bc2 {[%clk 0:00:05.3]} 50. Kd2 {[%clk 0:00:20.2]} 50...
Be4 {[%clk 0:00:05.4]} 51. Ke3 {[%clk 0:00:20.4]} 51... Bb1 {[%clk 0:00:05.6]}
52. Nc4 {[%clk 0:00:20]} 52... Bc2 {[%clk 0:00:05.6]} 53. Nd2 {[%clk 0:00:19.9]}
53... Kd6 {[%clk 0:00:03]} 54. Ke2 {[%clk 0:00:19.6]} 54... Kc6 {[%clk
0:00:02.4]} 55. Ke3 {[%clk 0:00:19.8]} 55... Kd5 {[%clk 0:00:02.8]} 56. Ke2
{[%clk 0:00:19.9]} 56... Kxd4 {[%clk 0:00:02.5]} 57. Ke1 {[%clk 0:00:18.5]}
57... Kc3 {[%clk 0:00:03]} 58. Ke2 {[%clk 0:00:18.5]} 58... Bxb3 {[%clk
0:00:03.6]} 59. Ke3 {[%clk 0:00:18.6]} 59... Bc4 {[%clk 0:00:03.6]} 60. Nb1+
{[%clk 0:00:18.7]} 60... Kc2 {[%clk 0:00:03.9]} 61. Nd2 {[%clk 0:00:19.6]} 61...
Bd5 {[%clk 0:00:04.5]} 62. Nf1 {[%clk 0:00:18.4]} 62... b3 {[%clk 0:00:04.8]}
63. Kd4 {[%clk 0:00:19.3]} 63... b2 {[%clk 0:00:05.1]} 64. Ne3+ {[%clk
0:00:20.2]} 64... Kc1 {[%clk 0:00:05.3]} 65. Ke5 {[%clk 0:00:18.2]} 65... b1=Q
{[%clk 0:00:05.4]} 66. Kf6 {[%clk 0:00:18.4]} 66... Qb2+ {[%clk 0:00:06]} 67.
Kg5 {[%clk 0:00:17.8]} 67... Be4 {[%clk 0:00:06.6]} 68. Kf4 {[%clk 0:00:17.7]}
68... Qf2+ {[%clk 0:00:07]} 69. Kg5 {[%clk 0:00:17.3]} 69... Qxe3+ {[%clk
0:00:07.5]} 70. Kf6 {[%clk 0:00:17.8]} 70... Qxg3 {[%clk 0:00:07.8]} 71. h5
{[%clk 0:00:18]} 71... gxh5 {[%clk 0:00:08.7]} 72. Kxe6 {[%clk 0:00:17.7]} 72...
h4 {[%clk 0:00:09.6]} 73. Kf6 {[%clk 0:00:18.1]} 73... h3 {[%clk 0:00:10.5]} 74.
Kf7 {[%clk 0:00:18.2]} 74... h2 {[%clk 0:00:11.4]} 75. Kf6 {[%clk 0:00:18.1]}
75... h1=Q {[%clk 0:00:12.3]} 76. Ke6 {[%clk 0:00:18.4]} 76... Qh6+ {[%clk
0:00:12.7]} 77. Ke7 {[%clk 0:00:19.3]} 77... Qgd6+ {[%clk 0:00:12.8]} 78. Kf7
{[%clk 0:00:18.6]} 78... Qhf8# {[%clk 0:00:13.3]} 0-1

[Event "*** Titled Tuesday Blitz"]
[Site "Chess.com"]
[Date "2020.10.27"]
[Round "2"]
[White "Zhani-Z"]
[Black "LiamVrolijk"]
[Result "0-1"]
[WhiteElo "2540"]
[BlackElo "2824"]
[TimeControl "180+1"]
[EndTime "10:19:40 PDT"]
[Termination "LiamVrolijk won on time"]

1. e4 {[%clk 0:03:00.9]} 1... g6 {[%clk 0:02:59.5]} 2. d4 {[%clk 0:03:00.3]}
2... Bg7 {[%clk 0:02:58.6]} 3. Nc3 {[%clk 0:03:00.9]} 3... d6 {[%clk 0:02:58.5]}
4. Be3 {[%clk 0:03:01.4]} 4... a6 {[%clk 0:02:58.7]} 5. f4 {[%clk 0:02:57.8]}
5... b5 {[%clk 0:02:58.4]} 6. Nf3 {[%clk 0:02:55.8]} 6... Bb7 {[%clk 0:02:58.6]}
7. Bd3 {[%clk 0:02:55.7]} 7... Nd7 {[%clk 0:02:56.5]} 8. e5 {[%clk 0:02:45.5]}
8... c5 {[%clk 0:02:56.4]} 9. Be4 {[%clk 0:02:44.2]} 9... Bxe4 {[%clk
0:02:53.6]} 10. Nxe4 {[%clk 0:02:44.5]} 10... cxd4 {[%clk 0:02:53.5]} 11. Bxd4
{[%clk 0:02:43]} 11... dxe5 {[%clk 0:02:17.8]} 12. fxe5 {[%clk 0:02:42]} 12...
Nb6 {[%clk 0:02:18]} 13. e6 {[%clk 0:02:15.7]} 13... f6 {[%clk 0:02:07.7]} 14.
Qe2 {[%clk 0:01:48.6]} 14... Nh6 {[%clk 0:02:03]} 15. O-O-O {[%clk 0:01:48.1]}
15... Qc7 {[%clk 0:01:59.9]} 16. Bxb6 {[%clk 0:01:34]} 16... Qxb6 {[%clk
0:02:00.8]} 17. Rd7 {[%clk 0:01:33.9]} 17... Qxe6 {[%clk 0:01:51.5]} 18. Rhd1
{[%clk 0:01:04.7]} 18... O-O {[%clk 0:01:45]} 19. Qd3 {[%clk 0:00:55.7]} 19...
Qxa2 {[%clk 0:01:40.9]} 20. Qb3+ {[%clk 0:00:38.8]} 20... Qxb3 {[%clk
0:01:39.9]} 21. cxb3 {[%clk 0:00:39.7]} 21... Nf5 {[%clk 0:01:30.3]} 22. Kb1
{[%clk 0:00:38.8]} 22... Rfe8 {[%clk 0:01:10.5]} 23. Nc5 {[%clk 0:00:36.4]}
23... Kf7 {[%clk 0:01:03.7]} 24. Re1 {[%clk 0:00:25.3]} 24... Red8 {[%clk
0:00:55.5]} 25. Rxd8 {[%clk 0:00:19.9]} 25... Rxd8 {[%clk 0:00:56.4]} 26. Nxa6
{[%clk 0:00:19.9]} 26... e5 {[%clk 0:00:55.9]} 27. Nc7 {[%clk 0:00:19.2]} 27...
b4 {[%clk 0:00:54.6]} 28. Na6 {[%clk 0:00:18.6]} 28... Bf8 {[%clk 0:00:54.2]}
29. Nc7 {[%clk 0:00:15.9]} 29... g5 {[%clk 0:00:47.1]} 30. h3 {[%clk 0:00:14.5]}
30... h5 {[%clk 0:00:46.9]} 31. Nb5 {[%clk 0:00:14.7]} 31... g4 {[%clk
0:00:45.6]} 32. hxg4 {[%clk 0:00:15.1]} 32... hxg4 {[%clk 0:00:46.5]} 33. Nh2
{[%clk 0:00:16]} 33... Nh6 {[%clk 0:00:43.1]} 34. Nf1 {[%clk 0:00:12]} 34... Rd5
{[%clk 0:00:39.1]} 35. Nc7 {[%clk 0:00:10.3]} 35... Rc5 {[%clk 0:00:38.4]} 36.
Na6 {[%clk 0:00:10]} 36... Rc6 {[%clk 0:00:35]} 37. Nb8 {[%clk 0:00:10.1]} 37...
Rd6 {[%clk 0:00:35.2]} 38. Ne3 {[%clk 0:00:09.2]} 38... Ke6 {[%clk 0:00:31.1]}
39. Nc4 {[%clk 0:00:09]} 39... Rd3 {[%clk 0:00:30.5]} 40. Nc6 {[%clk 0:00:07.5]}
40... Bc5 {[%clk 0:00:28.7]} 41. N6xe5 {[%clk 0:00:07.2]} 41... fxe5 {[%clk
0:00:17.7]} 42. Rxe5+ {[%clk 0:00:08.1]} 42... Kf6 {[%clk 0:00:18.6]} 43. Rxc5
{[%clk 0:00:08.5]} 43... Rxb3 {[%clk 0:00:16.6]} 44. Rb5 {[%clk 0:00:08.1]}
44... Nf5 {[%clk 0:00:16.3]} 45. Nd2 {[%clk 0:00:06.2]} 45... Re3 {[%clk
0:00:13.9]} 46. Rxb4 {[%clk 0:00:06.5]} 46... Re2 {[%clk 0:00:13.2]} 47. Ne4+
{[%clk 0:00:06.2]} 47... Ke5 {[%clk 0:00:13.6]} 48. Nc3 {[%clk 0:00:05.9]} 48...
Rxg2 {[%clk 0:00:13.7]} 49. Rb5+ {[%clk 0:00:06.5]} 49... Kf4 {[%clk 0:00:13.6]}
50. Rb4+ {[%clk 0:00:07]} 50... Kf3 {[%clk 0:00:13.4]} 51. Rb5 {[%clk
0:00:06.8]} 51... Ne3 {[%clk 0:00:13.8]} 52. Rb8 {[%clk 0:00:05.6]} 52... Rg1+
{[%clk 0:00:13.8]} 53. Ka2 {[%clk 0:00:04.4]} 53... g3 {[%clk 0:00:14.7]} 54.
Rf8+ {[%clk 0:00:04.3]} 54... Kg4 {[%clk 0:00:14.8]} 55. Ne4 {[%clk 0:00:03.5]}
55... g2 {[%clk 0:00:13.9]} 56. Rg8+ {[%clk 0:00:03.9]} 56... Kf4 {[%clk
0:00:14.1]} 57. Nf6 {[%clk 0:00:03]} 57... Rc1 {[%clk 0:00:10.8]} 58. Nd5+
{[%clk 0:00:03.3]} 58... Nxd5 {[%clk 0:00:10.5]} 59. Rxg2 {[%clk 0:00:03.9]}
59... Ke4 {[%clk 0:00:09.5]} 60. Rh2 {[%clk 0:00:03.5]} 60... Kd4 {[%clk
0:00:09.6]} 61. Rh4+ {[%clk 0:00:03.7]} 61... Kc5 {[%clk 0:00:10]} 62. Rh5
{[%clk 0:00:04.2]} 62... Rd1 {[%clk 0:00:09]} 63. Rh4 {[%clk 0:00:03.7]} 63...
Kb5 {[%clk 0:00:08.4]} 64. Rh5 {[%clk 0:00:03.4]} 64... Rd3 {[%clk 0:00:08.3]}
65. Kb1 {[%clk 0:00:03]} 65... Kc4 {[%clk 0:00:07.9]} 66. Kc1 {[%clk 0:00:02.2]}
66... Nb4 {[%clk 0:00:07.7]} 67. Rh4+ {[%clk 0:00:02.7]} 67... Kb3 {[%clk
0:00:07.7]} 68. Rh2 {[%clk 0:00:02.4]} 68... Na2+ {[%clk 0:00:07.6]} 0-1